[Event "Early-Titled-Tuesday-Blitz-February-27-2024"]
[Site "Chess.com"]
[Date "2024.02.27"]
[Round "3"]
[White "KhazhatulyAlikhan"]
[Black "Ariadna_Atreides"]
[Result "1-0"]
[WhiteElo "2423"]
[BlackElo "2193"]
[TimeControl "180+1"]
[EndTime "8:29:37 PST"]
[Termination "KhazhatulyAlikhan won by resignation"]

1. e4 {[%clk 0:03:00.9]} 1... c6 {[%clk 0:02:58.5]} 2. d4 {[%clk 0:03:00.1]}
2... d5 {[%clk 0:02:58.6]} 3. e5 {[%clk 0:02:38.6]} 3... Bf5 {[%clk 0:02:57.3]}
4. g4 {[%clk 0:02:39.1]} 4... Bd7 {[%clk 0:02:56.3]} 5. h3 {[%clk 0:02:34.9]}
5... e6 {[%clk 0:02:50.6]} 6. c3 {[%clk 0:02:33.5]} 6... c5 {[%clk 0:02:50.3]}
7. Ne2 {[%clk 0:02:30.6]} 7... h5 {[%clk 0:02:46.8]} 8. Bg2 {[%clk 0:02:31.1]}
8... hxg4 {[%clk 0:02:45.8]} 9. hxg4 {[%clk 0:02:32]} 9... Rxh1+ {[%clk
0:02:44.7]} 10. Bxh1 {[%clk 0:02:32.9]} 10... Nc6 {[%clk 0:02:44]} 11. Be3
{[%clk 0:02:21.8]} 11... Qb6 {[%clk 0:02:42.4]} 12. Qd2 {[%clk 0:02:21]} 12...
c4 {[%clk 0:02:37.5]} 13. Qc2 {[%clk 0:02:14.4]} 13... O-O-O {[%clk 0:02:29.7]}
14. Nd2 {[%clk 0:02:14.8]} 14... f6 {[%clk 0:02:28]} 15. f4 {[%clk 0:02:04.6]}
15... g5 {[%clk 0:02:17.3]} 16. Qg6 {[%clk 0:01:27.8]} 16... fxe5 {[%clk
0:01:56.5]} 17. Qxg8 {[%clk 0:01:07.6]} 17... exf4 {[%clk 0:01:38.8]} 18. Bf2
{[%clk 0:01:01.1]} 18... Qxb2 {[%clk 0:01:22.8]} 19. Rb1 {[%clk 0:01:01.2]}
19... Qxa2 {[%clk 0:01:22.9]} 20. Qxg5 {[%clk 0:00:58.4]} 20... Bd6 {[%clk
0:01:00.5]} 21. Nxf4 {[%clk 0:00:39.9]} 21... Qc2 {[%clk 0:00:50.5]} 22. Ne2
{[%clk 0:00:35.2]} 22... Rf8 {[%clk 0:00:38.6]} 23. Be3 {[%clk 0:00:14.2]} 23...
Na5 {[%clk 0:00:32.3]} 24. Rd1 {[%clk 0:00:08.3]} 24... Nb3 {[%clk 0:00:30.5]}
25. Bf4 {[%clk 0:00:03]} 25... Bxf4 {[%clk 0:00:22.5]} 26. Nxf4 {[%clk
0:00:03.3]} 26... Qxc3 {[%clk 0:00:23.1]} 27. Ne2 {[%clk 0:00:02.6]} 27... Qb2
{[%clk 0:00:21.9]} 28. Qh6 {[%clk 0:00:01.8]} 28... Re8 {[%clk 0:00:20.2]} 29.
g5 {[%clk 0:00:02.1]} 29... Nxd4 {[%clk 0:00:18.2]} 30. Nxd4 {[%clk 0:00:01.7]}
30... Qxd4 {[%clk 0:00:17.7]} 31. g6 {[%clk 0:00:02.2]} 31... Qg1+ {[%clk
0:00:17.3]} 32. Ke2 {[%clk 0:00:02.4]} 32... Qg4+ {[%clk 0:00:17.9]} 33. Bf3
{[%clk 0:00:01.9]} 33... Qf5 {[%clk 0:00:16.3]} 34. g7 {[%clk 0:00:02.2]} 34...
Qe5+ {[%clk 0:00:16.2]} 35. Kf2 {[%clk 0:00:02.5]} 35... Rg8 {[%clk 0:00:16]}
36. Rg1 {[%clk 0:00:02.1]} 36... Qd4+ {[%clk 0:00:14.3]} 37. Kf1 {[%clk
0:00:02.7]} 37... c3 {[%clk 0:00:14.5]} 38. Nb3 {[%clk 0:00:03.2]} 38... Qd3+
{[%clk 0:00:14.2]} 39. Be2 {[%clk 0:00:02.8]} 39... Qb1+ {[%clk 0:00:13.8]} 40.
Nc1 {[%clk 0:00:03.4]} 40... Qf5+ {[%clk 0:00:07.3]} 41. Ke1 {[%clk 0:00:02.9]}
41... c2 {[%clk 0:00:07.8]} 42. Qh8 {[%clk 0:00:02.5]} 42... Qf7 {[%clk
0:00:07.3]} 43. Qh6 {[%clk 0:00:02]} 43... e5 {[%clk 0:00:06.5]} 44. Qg5 {[%clk
0:00:02.1]} 44... e4 {[%clk 0:00:05.9]} 45. Qe5 {[%clk 0:00:02.4]} 45... Bc6
{[%clk 0:00:05.2]} 46. Bh5 {[%clk 0:00:02]} 46... Qd7 {[%clk 0:00:04.8]} 47. Be2
{[%clk 0:00:02.3]} 47... Qd8 {[%clk 0:00:05.3]} 48. Bg4+ {[%clk 0:00:02.6]}
48... Bd7 {[%clk 0:00:03.2]} 49. Be6 {[%clk 0:00:03]} 49... Bxe6 {[%clk
0:00:03]} 50. Qxe6+ {[%clk 0:00:03.9]} 50... Kb8 {[%clk 0:00:03.2]} 51. Rg4
{[%clk 0:00:02.6]} 51... Ka8 {[%clk 0:00:04.1]} 52. Qe5 {[%clk 0:00:02.7]} 52...
Qa5+ {[%clk 0:00:04.7]} 53. Ke2 {[%clk 0:00:02.7]} 53... Qa6+ {[%clk 0:00:04.8]}
54. Kf2 {[%clk 0:00:03.1]} 54... Qh6 {[%clk 0:00:05.1]} 55. Qf5 {[%clk
0:00:02.2]} 55... a6 {[%clk 0:00:03.2]} 56. Qf7 {[%clk 0:00:01.6]} 56... Qh7
{[%clk 0:00:02.8]} 57. Kg3 {[%clk 0:00:01.9]} 57... Ka7 {[%clk 0:00:01.9]} 58.
Qxd5 {[%clk 0:00:02.4]} 58... e3 {[%clk 0:00:02.2]} 59. Qc5+ {[%clk 0:00:02.8]}
59... Kb8 {[%clk 0:00:01.8]} 60. Qxe3 {[%clk 0:00:02.4]} 60... Ka8 {[%clk
0:00:01.5]} 61. Qe5 {[%clk 0:00:02.9]} 61... Ka7 {[%clk 0:00:02.4]} 62. Qd4+
{[%clk 0:00:03.1]} 62... Ka8 {[%clk 0:00:01.8]} 63. Qf6 {[%clk 0:00:03.7]} 63...
Kb8 {[%clk 0:00:02.6]} 64. Ne2 {[%clk 0:00:04.2]} 64... Ka7 {[%clk 0:00:03.1]}
65. Qd4+ {[%clk 0:00:04.2]} 65... Kb8 {[%clk 0:00:02.6]} 66. Nc1 {[%clk
0:00:04.8]} 66... Ka8 {[%clk 0:00:02.9]} 67. Kf4 {[%clk 0:00:04.9]} 67... Kb8
{[%clk 0:00:03.3]} 68. Qd5 {[%clk 0:00:05.2]} 68... Qh6+ {[%clk 0:00:03.3]} 69.
Qg5 {[%clk 0:00:04.7]} 69... Rxg7 {[%clk 0:00:04.2]} 70. Qxh6 {[%clk 0:00:04.7]}
70... Rxg4+ {[%clk 0:00:04.7]} 71. Kxg4 {[%clk 0:00:05.6]} 71... a5 {[%clk
0:00:04.8]} 72. Qd2 {[%clk 0:00:06.3]} 72... Ka7 {[%clk 0:00:05.7]} 73. Qxc2
{[%clk 0:00:07]} 73... b6 {[%clk 0:00:05.6]} 74. Kf4 {[%clk 0:00:07.7]} 74...
Ka6 {[%clk 0:00:06]} 75. Ke4 {[%clk 0:00:08.4]} 1-0

[Event "Early-Titled-Tuesday-Blitz-February-27-2024"]
[Site "Chess.com"]
[Date "2024.02.27"]
[Round "3"]
[White "N4700000"]
[Black "MikeSailer"]
[Result "1-0"]
[WhiteElo "2466"]
[BlackElo "2154"]
[TimeControl "180+1"]
[EndTime "8:29:40 PST"]
[Termination "N4700000 won on time"]

1. e4 {[%clk 0:03:00.9]} 1... d5 {[%clk 0:02:57.1]} 2. exd5 {[%clk 0:03:00.2]}
2... Qxd5 {[%clk 0:02:52.5]} 3. Nc3 {[%clk 0:02:59.3]} 3... Qd6 {[%clk
0:02:52.8]} 4. d4 {[%clk 0:02:56.9]} 4... c6 {[%clk 0:02:53.1]} 5. Nf3 {[%clk
0:02:55.8]} 5... Bg4 {[%clk 0:02:52.8]} 6. h3 {[%clk 0:02:44.6]} 6... Bh5 {[%clk
0:02:52.3]} 7. g4 {[%clk 0:02:42.2]} 7... Bg6 {[%clk 0:02:52.5]} 8. Ne5 {[%clk
0:02:40.6]} 8... Nd7 {[%clk 0:02:52]} 9. Bf4 {[%clk 0:02:39.4]} 9... Nxe5 {[%clk
0:02:51]} 10. Bxe5 {[%clk 0:02:38]} 10... Qb4 {[%clk 0:02:51]} 11. Qd2 {[%clk
0:02:31.8]} 11... e6 {[%clk 0:02:51.1]} 12. O-O-O {[%clk 0:02:22]} 12... O-O-O
{[%clk 0:02:47.1]} 13. Bg2 {[%clk 0:01:51]} 13... Nf6 {[%clk 0:02:41.9]} 14. Bg3
{[%clk 0:01:28.8]} 14... Qa5 {[%clk 0:02:36.4]} 15. g5 {[%clk 0:01:06.8]} 15...
Nd5 {[%clk 0:02:22]} 16. Nxd5 {[%clk 0:01:04]} 16... Qxd2+ {[%clk 0:02:21.5]}
17. Rxd2 {[%clk 0:01:03.6]} 17... cxd5 {[%clk 0:02:21.8]} 18. h4 {[%clk
0:00:58.5]} 18... Bh5 {[%clk 0:02:06.7]} 19. Be5 {[%clk 0:00:52.7]} 19... Rg8
{[%clk 0:02:04.8]} 20. Rh3 {[%clk 0:00:50.9]} 20... Bd6 {[%clk 0:02:04.2]} 21.
Rc3+ {[%clk 0:00:38.7]} 21... Kd7 {[%clk 0:01:52.4]} 22. Bxd6 {[%clk 0:00:35.3]}
22... Kxd6 {[%clk 0:01:52.2]} 23. Ra3 {[%clk 0:00:33.2]} 23... a6 {[%clk
0:01:51.4]} 24. Rdd3 {[%clk 0:00:31.6]} 24... Rc8 {[%clk 0:01:43]} 25. Rdb3
{[%clk 0:00:29.5]} 25... Rc7 {[%clk 0:01:39]} 26. Rb6+ {[%clk 0:00:29.1]} 26...
Kd7 {[%clk 0:01:36]} 27. Rab3 {[%clk 0:00:24.2]} 27... Kc8 {[%clk 0:01:34.5]}
28. Kd2 {[%clk 0:00:21.3]} 28... Rd8 {[%clk 0:01:26]} 29. c3 {[%clk 0:00:19.1]}
29... Rdd7 {[%clk 0:01:17.6]} 30. Bf1 {[%clk 0:00:19]} 30... Bg4 {[%clk
0:01:06.8]} 31. Bxa6 {[%clk 0:00:17.4]} 31... f6 {[%clk 0:00:57.6]} 32. Bb5
{[%clk 0:00:16.9]} 32... Rf7 {[%clk 0:00:57.3]} 33. Ke1 {[%clk 0:00:15.7]} 33...
fxg5 {[%clk 0:00:57.6]} 34. hxg5 {[%clk 0:00:16.6]} 34... Rf3 {[%clk 0:00:40.6]}
35. Be2 {[%clk 0:00:16.2]} 35... Rf4 {[%clk 0:00:40.7]} 36. Bxg4 {[%clk
0:00:16.1]} 36... Rxg4 {[%clk 0:00:40.8]} 37. Rxe6 {[%clk 0:00:16.7]} 37... Rxg5
{[%clk 0:00:37.7]} 38. Re8+ {[%clk 0:00:16.5]} 38... Kd7 {[%clk 0:00:37.7]} 39.
Rb8 {[%clk 0:00:16.7]} 39... Kc6 {[%clk 0:00:30.8]} 40. Re8 {[%clk 0:00:14.9]}
40... Kd7 {[%clk 0:00:28.5]} 41. Re3 {[%clk 0:00:12.8]} 41... h5 {[%clk
0:00:26.9]} 42. Rb6 {[%clk 0:00:12]} 42... g6 {[%clk 0:00:24.5]} 43. Kf1 {[%clk
0:00:11.9]} 43... h4 {[%clk 0:00:13]} 44. Ree6 {[%clk 0:00:12.3]} 44... Rc6
{[%clk 0:00:12.5]} 45. Rexc6 {[%clk 0:00:10.7]} 45... bxc6 {[%clk 0:00:12.7]}
46. Rb7+ {[%clk 0:00:11.2]} 46... Ke6 {[%clk 0:00:12.7]} 47. Rh7 {[%clk
0:00:11.8]} 47... Rg4 {[%clk 0:00:10.4]} 48. f3 {[%clk 0:00:12.2]} 48... Rf4
{[%clk 0:00:06.9]} 49. Kg2 {[%clk 0:00:12.1]} 49... g5 {[%clk 0:00:07.5]} 50. a4
{[%clk 0:00:10.2]} 50... Rf6 {[%clk 0:00:05.4]} 51. a5 {[%clk 0:00:09.2]} 51...
Kf5 {[%clk 0:00:06]} 52. a6 {[%clk 0:00:07.9]} 52... Rf8 {[%clk 0:00:06.5]} 53.
a7 {[%clk 0:00:07.8]} 53... Ra8 {[%clk 0:00:03.7]} 54. Rf7+ {[%clk 0:00:08.3]}
54... Kg6 {[%clk 0:00:03.9]} 55. Rc7 {[%clk 0:00:08.4]} 55... Kf5 {[%clk
0:00:04.5]} 56. Kh3 {[%clk 0:00:07.8]} 56... Kf4 {[%clk 0:00:03.4]} 57. Rf7+
{[%clk 0:00:08.4]} 57... Ke3 {[%clk 0:00:03.7]} 58. Kg4 {[%clk 0:00:09]} 58...
Kf2 {[%clk 0:00:02.1]} 59. Kxg5 {[%clk 0:00:08.8]} 59... h3 {[%clk 0:00:02.5]}
60. Rh7 {[%clk 0:00:07.1]} 60... Kg2 {[%clk 0:00:02.7]} 61. f4 {[%clk
0:00:07.2]} 61... h2 {[%clk 0:00:02.9]} 62. f5 {[%clk 0:00:07.5]} 62... Rxa7
{[%clk 0:00:03.5]} 63. Rxh2+ {[%clk 0:00:07.4]} 63... Kxh2 {[%clk 0:00:03.7]}
64. f6 {[%clk 0:00:07.9]} 64... Kg3 {[%clk 0:00:03.2]} 65. Kg6 {[%clk
0:00:08.5]} 65... Kf4 {[%clk 0:00:02.6]} 66. f7 {[%clk 0:00:09.1]} 66... Ra8
{[%clk 0:00:01.7]} 67. Kg7 {[%clk 0:00:09.5]} 67... Ke3 {[%clk 0:00:02.1]} 68.
f8=Q {[%clk 0:00:09.8]} 68... Rxf8 {[%clk 0:00:02.6]} 69. Kxf8 {[%clk
0:00:10.7]} 69... Kd3 {[%clk 0:00:03.5]} 70. Ke7 {[%clk 0:00:10.8]} 70... Kc2
{[%clk 0:00:04.3]} 71. Kd6 {[%clk 0:00:11.4]} 71... Kxb2 {[%clk 0:00:05.2]} 72.
Kxc6 {[%clk 0:00:11.8]} 72... Kxc3 {[%clk 0:00:06.1]} 73. Kxd5 {[%clk
0:00:12.5]} 1-0

[Event "Early-Titled-Tuesday-Blitz-February-27-2024"]
[Site "Chess.com"]
[Date "2024.02.27"]
[Round "3"]
[White "chipmunknau"]
[Black "AryanTari"]
[Result "1-0"]
[WhiteElo "2732"]
[BlackElo "2933"]
[TimeControl "180+1"]
[EndTime "8:29:49 PST"]
[Termination "chipmunknau won by resignation"]

1. Nf3 {[%clk 0:03:00.2]} 1... Nf6 {[%clk 0:02:58.8]} 2. g3 {[%clk 0:02:59.4]}
2... c5 {[%clk 0:02:43.9]} 3. c4 {[%clk 0:02:57.7]} 3... Nc6 {[%clk 0:02:43]} 4.
Bg2 {[%clk 0:02:57.6]} 4... d5 {[%clk 0:02:42.8]} 5. cxd5 {[%clk 0:02:57.2]}
5... Nxd5 {[%clk 0:02:43.7]} 6. O-O {[%clk 0:02:54.1]} 6... e5 {[%clk
0:02:43.3]} 7. Nc3 {[%clk 0:02:48.1]} 7... Be6 {[%clk 0:02:41.9]} 8. d3 {[%clk
0:02:44.3]} 8... Be7 {[%clk 0:02:41.2]} 9. Bd2 {[%clk 0:02:28]} 9... Nc7 {[%clk
0:02:36.3]} 10. Rc1 {[%clk 0:02:22.8]} 10... O-O {[%clk 0:02:35]} 11. a3 {[%clk
0:02:19.9]} 11... Qd7 {[%clk 0:02:09.8]} 12. Ng5 {[%clk 0:02:10.2]} 12... Bxg5
{[%clk 0:02:08.7]} 13. Bxg5 {[%clk 0:02:11.1]} 13... f6 {[%clk 0:02:02]} 14. Be3
{[%clk 0:02:10]} 14... b6 {[%clk 0:01:38.3]} 15. Qa4 {[%clk 0:01:59.9]} 15...
Nd5 {[%clk 0:01:33.7]} 16. Nxd5 {[%clk 0:01:30.1]} 16... Bxd5 {[%clk 0:01:34.6]}
17. Bxd5+ {[%clk 0:01:23.6]} 17... Qxd5 {[%clk 0:01:34.3]} 18. b4 {[%clk
0:01:24.2]} 18... Nd4 {[%clk 0:01:28.5]} 19. Bxd4 {[%clk 0:01:24.1]} 19... exd4
{[%clk 0:01:20.8]} 20. bxc5 {[%clk 0:01:23.5]} 20... bxc5 {[%clk 0:01:21.7]} 21.
Rc2 {[%clk 0:01:19.6]} 21... Rfc8 {[%clk 0:01:13.4]} 22. Rfc1 {[%clk 0:01:13.2]}
22... Rc7 {[%clk 0:01:13.1]} 23. Qc4 {[%clk 0:01:13.8]} 23... Qxc4 {[%clk
0:01:09.7]} 24. Rxc4 {[%clk 0:01:14.7]} 24... Rac8 {[%clk 0:01:08.9]} 25. Rb1
{[%clk 0:01:13.7]} 25... Kf7 {[%clk 0:01:07.3]} 26. h4 {[%clk 0:01:10.1]} 26...
Ke6 {[%clk 0:01:07.2]} 27. Kg2 {[%clk 0:01:09.6]} 27... Kd6 {[%clk 0:01:06.9]}
28. Kf3 {[%clk 0:01:08]} 28... Kc6 {[%clk 0:01:01.5]} 29. Rbc1 {[%clk
0:01:07.6]} 29... Kd5 {[%clk 0:01:01.1]} 30. Rb1 {[%clk 0:01:08]} 30... Kc6
{[%clk 0:01:01]} 31. Rbc1 {[%clk 0:01:08]} 31... Kd6 {[%clk 0:00:59.1]} 32. Rb1
{[%clk 0:01:08.1]} 32... Rc6 {[%clk 0:00:58.4]} 33. Rb7 {[%clk 0:01:00.1]} 33...
R8c7 {[%clk 0:00:56.8]} 34. Rb8 {[%clk 0:00:55.8]} 34... Rb6 {[%clk 0:00:57]}
35. Rh8 {[%clk 0:00:55.1]} 35... g6 {[%clk 0:00:52.4]} 36. Rd8+ {[%clk 0:00:54]}
36... Ke6 {[%clk 0:00:35.9]} 37. Rdxd4 {[%clk 0:00:54.1]} 37... cxd4 {[%clk
0:00:36.8]} 38. Rxc7 {[%clk 0:00:54.2]} 38... Ra6 {[%clk 0:00:37.5]} 39. Rxh7
{[%clk 0:00:51.3]} 39... Rxa3 {[%clk 0:00:38.1]} 40. Rg7 {[%clk 0:00:51.9]}
40... a5 {[%clk 0:00:36]} 41. Rxg6 {[%clk 0:00:52.2]} 41... Kf7 {[%clk
0:00:36.5]} 42. Rh6 {[%clk 0:00:50.9]} 42... Rb3 {[%clk 0:00:30.5]} 43. Rh7+
{[%clk 0:00:48.5]} 43... Kg6 {[%clk 0:00:30.2]} 44. Ra7 {[%clk 0:00:49.4]} 44...
Rb5 {[%clk 0:00:30.7]} 45. Rd7 {[%clk 0:00:37.4]} 45... a4 {[%clk 0:00:29.4]}
46. Ra7 {[%clk 0:00:38.1]} 46... Rb4 {[%clk 0:00:27.3]} 47. Ke4 {[%clk
0:00:36.4]} 47... Rb2 {[%clk 0:00:27.4]} 48. Rxa4 {[%clk 0:00:31.6]} 48... Rxe2+
{[%clk 0:00:27]} 49. Kf3 {[%clk 0:00:32.1]} 49... Rb2 {[%clk 0:00:26.2]} 50.
Rxd4 {[%clk 0:00:32.5]} 50... f5 {[%clk 0:00:26.8]} 51. Rd6+ {[%clk 0:00:31.7]}
51... Kh5 {[%clk 0:00:27.1]} 52. Rf6 {[%clk 0:00:31.8]} 52... Rb5 {[%clk
0:00:23.7]} 53. Kg2 {[%clk 0:00:22.3]} 53... Rd5 {[%clk 0:00:16.2]} 54. Kh3
{[%clk 0:00:22.1]} 54... Rxd3 {[%clk 0:00:10.6]} 55. Rxf5+ {[%clk 0:00:22.2]}
55... Kg6 {[%clk 0:00:11.5]} 56. Rg5+ {[%clk 0:00:21.4]} 56... Kh6 {[%clk
0:00:10.8]} 57. f4 {[%clk 0:00:22.3]} 57... Rd1 {[%clk 0:00:10.3]} 58. Kg4
{[%clk 0:00:22.8]} 58... Rd8 {[%clk 0:00:09.6]} 59. Re5 {[%clk 0:00:23.7]} 59...
Rg8+ {[%clk 0:00:09.7]} 60. Kh3 {[%clk 0:00:23.7]} 60... Ra8 {[%clk 0:00:10.1]}
61. h5 {[%clk 0:00:23.7]} 61... Ra1 {[%clk 0:00:08.1]} 62. Kh4 {[%clk 0:00:24]}
62... Rh1+ {[%clk 0:00:07.2]} 63. Kg4 {[%clk 0:00:24.5]} 63... Ra1 {[%clk
0:00:07]} 64. Re6+ {[%clk 0:00:24.8]} 64... Kh7 {[%clk 0:00:07.5]} 65. Kg5
{[%clk 0:00:24.5]} 65... Ra8 {[%clk 0:00:08.1]} 66. g4 {[%clk 0:00:21]} 66...
Rf8 {[%clk 0:00:06.3]} 67. f5 {[%clk 0:00:20]} 67... Rg8+ {[%clk 0:00:06.6]} 68.
Rg6 {[%clk 0:00:20.1]} 68... Ra8 {[%clk 0:00:07.5]} 69. h6 {[%clk 0:00:20.4]}
69... Ra1 {[%clk 0:00:06.8]} 70. Rg7+ {[%clk 0:00:20.5]} 70... Kh8 {[%clk
0:00:07.3]} 71. Rd7 {[%clk 0:00:21.4]} 71... Ra6 {[%clk 0:00:06]} 72. Kh5 {[%clk
0:00:21.2]} 72... Rb6 {[%clk 0:00:04.8]} 73. g5 {[%clk 0:00:21.2]} 73... Rb5
{[%clk 0:00:03.9]} 74. Kg6 {[%clk 0:00:20.8]} 74... Rb8 {[%clk 0:00:02.4]} 75.
Rh7+ {[%clk 0:00:18.6]} 75... Kg8 {[%clk 0:00:02.5]} 76. f6 {[%clk 0:00:19.5]}
76... Rb6 {[%clk 0:00:02]} 77. Rg7+ {[%clk 0:00:19.5]} 77... Kh8 {[%clk
0:00:02.1]} 78. Rc7 {[%clk 0:00:20.4]} 78... Rb8 {[%clk 0:00:02.2]} 79. Kh5
{[%clk 0:00:20.4]} 79... Rd8 {[%clk 0:00:02.2]} 80. Re7 {[%clk 0:00:20]} 80...
Rc8 {[%clk 0:00:02.3]} 81. Kg6 {[%clk 0:00:19.6]} 81... Rg8+ {[%clk 0:00:02.5]}
82. Kf5 {[%clk 0:00:19.8]} 82... Rb8 {[%clk 0:00:03.4]} 83. f7 {[%clk
0:00:19.2]} 83... Rf8 {[%clk 0:00:03.3]} 84. Kg6 {[%clk 0:00:15.4]} 84... Rc8
{[%clk 0:00:02.7]} 85. Re8+ {[%clk 0:00:15.6]} 1-0

[Event "Early-Titled-Tuesday-Blitz-February-27-2024"]
[Site "Chess.com"]
[Date "2024.02.27"]
[Round "3"]
[White "As0nchess"]
[Black "BilodeauA"]
[Result "0-1"]
[WhiteElo "2535"]
[BlackElo "3010"]
[TimeControl "180+1"]
[EndTime "8:29:56 PST"]
[Termination "BilodeauA won by checkmate"]

1. e4 {[%clk 0:03:00.9]} 1... e5 {[%clk 0:02:59.4]} 2. Nf3 {[%clk 0:03:01.4]}
2... Nc6 {[%clk 0:03:00]} 3. Bc4 {[%clk 0:03:01.7]} 3... Bc5 {[%clk 0:02:59.3]}
4. c3 {[%clk 0:03:01.7]} 4... Nf6 {[%clk 0:02:59.9]} 5. d3 {[%clk 0:03:01.1]}
5... d6 {[%clk 0:02:59.9]} 6. O-O {[%clk 0:03:01.3]} 6... Bb6 {[%clk 0:03:00.3]}
7. Re1 {[%clk 0:03:01.1]} 7... O-O {[%clk 0:02:57.3]} 8. h3 {[%clk 0:03:01]}
8... h6 {[%clk 0:02:44.3]} 9. Nbd2 {[%clk 0:02:59.9]} 9... Ne7 {[%clk
0:02:44.4]} 10. Bb3 {[%clk 0:02:58.4]} 10... Be6 {[%clk 0:02:43.3]} 11. d4
{[%clk 0:02:56.2]} 11... Ng6 {[%clk 0:02:39]} 12. Bc2 {[%clk 0:02:50.1]} 12...
c6 {[%clk 0:02:30.9]} 13. Nf1 {[%clk 0:02:48.2]} 13... exd4 {[%clk 0:02:31.2]}
14. cxd4 {[%clk 0:02:48.1]} 14... d5 {[%clk 0:02:31.7]} 15. e5 {[%clk
0:02:48.5]} 15... Ne4 {[%clk 0:02:32]} 16. Ng3 {[%clk 0:02:46.6]} 16... Nxg3
{[%clk 0:02:29.4]} 17. fxg3 {[%clk 0:02:47.5]} 17... f5 {[%clk 0:02:24]} 18. b4
{[%clk 0:02:14.2]} 18... a5 {[%clk 0:02:21.3]} 19. Bd2 {[%clk 0:02:09.9]} 19...
Ne7 {[%clk 0:01:57.6]} 20. a3 {[%clk 0:02:09.6]} 20... Qc7 {[%clk 0:01:37.9]}
21. Bc3 {[%clk 0:02:01.8]} 21... Ra7 {[%clk 0:01:35.4]} 22. Qd3 {[%clk
0:01:56.4]} 22... Rfa8 {[%clk 0:01:34.5]} 23. Kh2 {[%clk 0:01:53.2]} 23... axb4
{[%clk 0:01:32.6]} 24. axb4 {[%clk 0:01:53.4]} 24... Rxa1 {[%clk 0:01:32.7]} 25.
Rxa1 {[%clk 0:01:54.2]} 25... Rxa1 {[%clk 0:01:32.7]} 26. Bxa1 {[%clk
0:01:55.1]} 26... Qd8 {[%clk 0:01:31.1]} 27. Qa3 {[%clk 0:01:53.8]} 27... Ng6
{[%clk 0:01:19.7]} 28. Bd3 {[%clk 0:01:50.2]} 28... Qe7 {[%clk 0:01:13.5]} 29.
Bc3 {[%clk 0:01:49]} 29... Nf8 {[%clk 0:01:12.8]} 30. Qa8 {[%clk 0:01:48.5]}
30... Qd7 {[%clk 0:01:00.3]} 31. Nh4 {[%clk 0:01:44.5]} 31... Kf7 {[%clk
0:00:53.7]} 32. Qb8 {[%clk 0:01:41]} 32... g5 {[%clk 0:00:48.7]} 33. Nf3 {[%clk
0:01:40]} 33... Qc8 {[%clk 0:00:46.1]} 34. Qxc8 {[%clk 0:01:33.2]} 34... Bxc8
{[%clk 0:00:47]} 35. Kg1 {[%clk 0:01:29.7]} 35... Be6 {[%clk 0:00:39.5]} 36. Kf2
{[%clk 0:01:28]} 36... Ng6 {[%clk 0:00:36.9]} 37. Ke2 {[%clk 0:01:26.2]} 37...
Ne7 {[%clk 0:00:32.6]} 38. h4 {[%clk 0:01:21.3]} 38... g4 {[%clk 0:00:25.6]} 39.
Ne1 {[%clk 0:01:14.7]} 39... Nc8 {[%clk 0:00:22.5]} 40. Ke3 {[%clk 0:01:06.3]}
40... Bd8 {[%clk 0:00:22.2]} 41. Be2 {[%clk 0:01:01.7]} 41... Nb6 {[%clk
0:00:21.9]} 42. Nd3 {[%clk 0:00:53.6]} 42... Nc4+ {[%clk 0:00:21.8]} 43. Kf2
{[%clk 0:00:54.2]} 43... b6 {[%clk 0:00:19.4]} 44. Nf4 {[%clk 0:00:54.5]} 44...
Be7 {[%clk 0:00:18]} 45. Bd3 {[%clk 0:00:52.2]} 45... Bd7 {[%clk 0:00:17.5]} 46.
Ke2 {[%clk 0:00:50.4]} 46... Be6 {[%clk 0:00:17.8]} 47. Kf2 {[%clk 0:00:39.8]}
47... Bd8 {[%clk 0:00:17.9]} 48. Ke2 {[%clk 0:00:39.6]} 48... Bc7 {[%clk
0:00:18.4]} 49. Bc2 {[%clk 0:00:37.7]} 49... Bb8 {[%clk 0:00:18.3]} 50. Ba4
{[%clk 0:00:37.6]} 50... b5 {[%clk 0:00:10.8]} 51. Bc2 {[%clk 0:00:36.8]} 51...
Bd7 {[%clk 0:00:11.1]} 52. Bd3 {[%clk 0:00:35.9]} 52... Nb6 {[%clk 0:00:11.5]}
53. Bd2 {[%clk 0:00:30.2]} 53... Bc7 {[%clk 0:00:11.2]} 54. Nh5 {[%clk
0:00:28.8]} 54... Bd8 {[%clk 0:00:10.7]} 55. Kf2 {[%clk 0:00:24.1]} 55... Nc4
{[%clk 0:00:10.9]} 56. Bc3 {[%clk 0:00:22]} 56... Be7 {[%clk 0:00:11.4]} 57. Ke1
{[%clk 0:00:20.8]} 57... Na3 {[%clk 0:00:10]} 58. Nf4 {[%clk 0:00:20.1]} 58...
Nc4 {[%clk 0:00:10]} 59. Ke2 {[%clk 0:00:19.4]} 59... Be6 {[%clk 0:00:10.5]} 60.
Ke1 {[%clk 0:00:19.1]} 60... Bf8 {[%clk 0:00:10.8]} 61. Ke2 {[%clk 0:00:19.5]}
61... Nb6 {[%clk 0:00:11.3]} 62. Ke1 {[%clk 0:00:20]} 62... Nd7 {[%clk
0:00:11.7]} 63. Ke2 {[%clk 0:00:19.2]} 63... Be7 {[%clk 0:00:12.2]} 64. Bd2
{[%clk 0:00:19]} 64... Nf8 {[%clk 0:00:12.4]} 65. Nxe6 {[%clk 0:00:19]} 65...
Nxe6 {[%clk 0:00:11.3]} 66. Bc3 {[%clk 0:00:19.2]} 66... Kg6 {[%clk 0:00:11.5]}
67. Ke3 {[%clk 0:00:17.2]} 67... h5 {[%clk 0:00:11.9]} 68. Bc2 {[%clk
0:00:17.4]} 68... Ng7 {[%clk 0:00:12.2]} 69. Bd3 {[%clk 0:00:17.6]} 69... Kf7
{[%clk 0:00:12.6]} 70. Bc2 {[%clk 0:00:17.4]} 70... Ke6 {[%clk 0:00:13.1]} 71.
Bd3 {[%clk 0:00:17.6]} 71... Bf8 {[%clk 0:00:13.6]} 72. Ke2 {[%clk 0:00:17.8]}
72... Ne8 {[%clk 0:00:13.1]} 73. Bd2 {[%clk 0:00:18.4]} 73... Nc7 {[%clk
0:00:13.2]} 74. Ke3 {[%clk 0:00:12]} 74... Na6 {[%clk 0:00:11.9]} 75. Be1 {[%clk
0:00:11.5]} 75... Nxb4 {[%clk 0:00:10.2]} 76. Bxb4 {[%clk 0:00:11.5]} 76... Bxb4
{[%clk 0:00:11.1]} 77. Ke2 {[%clk 0:00:11.2]} 77... Bc3 {[%clk 0:00:10.8]} 78.
Ke3 {[%clk 0:00:11.4]} 78... Be1 {[%clk 0:00:11.1]} 79. Kf4 {[%clk 0:00:09.2]}
79... Bd2# {[%clk 0:00:11.1]} 0-1